bitfinex-derivatives/quotes_BNBF0:USTF0_20250907
["timestamp","ask_amount","ask_price","bid_price","bid_amount"]
[1757232582855,2.56126054,869.98,867.27,1.47967458]
[1757232583058,2.56126054,869.98,867.28,0.71804368]
[1757232583259,2.56126054,869.97,867.29,0.71804368]
[1757232583458,2.56126054,869.97,867.3,0.71804368]
[1757232583655,2.56126054,869.97,867.31,0.71804368]
[1757232583957,2.56126054,869.97,867.32,0.71804368]
[1757232584158,2.56126054,869.97,867.27,0.7616309]
[1757232584159,2.56126054,869.97,867.33,0.71804368]
[1757232584360,2.56126054,869.97,867.34,0.71804368]
[1757232584556,2.56126054,869.97,867.35,0.71804368]
[1757232584756,2.56126054,869.81,867.36,0.71804368]
[1757232585059,2.56126054,869.81,867.37,0.71804368]
[1757232585259,2.56126054,869.14,867.38,0.71804368]
[1757232585459,2.56126054,869.14,867.08,0.7616309]
[1757232585857,2.56126054,869.03,867.08,0.7616309]
[1757232586359,2.56126054,869.03,866.93,0.71861448]
[1757232586360,2.56126054,869.05,867.09,0.71861448]
[1757232586559,2.56126054,869.05,867.1,0.71861448]
[1757232586855,2.56126054,869.05,867.11,0.71861448]
[1757232587058,2.56126054,869.05,867.08,0.7616309]
[1757232587059,2.56126054,869.05,867.12,0.71861448]
[1757232587256,2.56126054,869.05,867.13,0.71861448]
[1757232587458,2.56126054,869.07,867.14,0.71861448]
[1757232587659,2.56126054,869.07,867.15,0.71861448]
[1757232587858,2.56126054,869.2,867.16,0.71861448]
[1757232588058,2.56126054,869.2,867.17,0.71861448]
[1757232588260,2.56126054,869.2,867.18,0.71861448]
[1757232588458,2.56126054,869.22,867.19,0.71861448]
[1757232588660,2.56126054,869.22,867.2,0.71861448]
[1757232588859,2.56126054,869.17,867.21,0.71861448]
[1757232589062,2.56126054,869.17,867.22,0.71861448]
[1757232589362,2.56126054,869.17,867.07,0.7616309]
[1757232589363,2.56126054,869.19,867.23,0.71861448]
[1757232589659,2.56126054,869.19,867.24,0.71861448]
[1757232589959,2.56126054,869.18,867.25,0.71861448]
[1757232590160,2.56126054,869.18,867.26,0.71861448]
[1757232590459,2.56126054,869.3,867.27,0.71861448]
[1757232590663,2.56126054,869.3,867.28,0.71861448]
[1757232590959,2.56126054,869.3,867.29,0.71861448]
[1757232591162,2.56126054,869.3,867.3,0.71861448]
[1757232591361,2.56126054,869.3,867.31,0.71861448]
[1757232591561,2.56126054,869.32,867.32,0.71861448]
[1757232591760,2.56126054,869.32,867.33,0.71861448]
[1757232591958,2.56126054,869.32,867.02,0.7616309]
[1757232592162,2.56126054,869.23,867.02,0.7616309]
[1757232592659,2.56126054,869.57,867.03,0.71776489]
[1757232592863,2.56126054,869.57,867.04,0.71776489]
[1757232593062,2.56126054,869.23,867.05,0.71776489]
[1757232593364,2.56126054,869.23,867.06,0.71776489]
[1757232593564,2.56126054,869.27,867.07,0.71776489]
[1757232593764,2.56126054,869.27,867.08,0.71776489]
[1757232593962,2.56126054,869.27,867.09,0.71776489]
[1757232594265,2.56126054,868.96,867.1,0.71776489]
[1757232594562,2.56126054,868.96,867.11,0.71776489]
[1757232594766,2.56126054,868.94,867.12,0.71776489]
[1757232594963,2.56126054,868.94,867.13,0.71776489]
[1757232595163,2.56126054,868.97,866.83,0.7616309]
[1757232595367,2.56126054,868.97,866.84,1.4789818]
[1757232595568,2.56126054,868.97,866.85,0.7173509]
[1757232595863,2.56126054,869.02,866.86,0.7173509]
[1757232596068,2.56126054,869.02,866.84,0.7616309]
[1757232596069,2.56126054,869.02,866.87,0.7173509]
[1757232596365,2.56126054,869.05,866.88,0.7173509]
[1757232596565,2.56126054,869.05,866.89,0.7173509]
[1757232596767,2.56126054,869.1,866.9,0.7173509]
[1757232596968,2.56126054,869.1,866.91,0.7173509]
[1757232597166,2.56126054,869.1,866.92,0.7173509]
[1757232597367,2.56126054,869.1,866.93,0.7173509]
[1757232597564,2.56126054,869.1,866.94,0.7173509]
[1757232597765,2.56126054,869.1,866.95,0.7173509]
[1757232597968,2.56126054,869.1,866.96,0.7173509]
[1757232598168,2.56126054,869.1,866.97,0.7173509]
[1757232598365,2.56126054,869.14,866.98,0.7173509]
[1757232598567,2.56126054,869.14,866.99,0.7173509]
[1757232598765,2.56126054,869.13,867.0,0.7173509]
[1757232598970,2.56126054,869.13,867.01,0.7173509]
[1757232599170,2.56126054,869.13,867.02,0.7173509]
[1757232599370,2.56126054,869.15,867.03,0.7173509]
[1757232599566,2.56126054,869.15,867.04,0.7173509]
[1757232599867,3.62131877,869.45,867.05,0.7173509]
[1757232600169,2.56126054,869.47,867.06,0.7173509]
[1757232600369,2.56126054,869.47,867.07,0.7173509]
[1757232600565,2.56126054,869.47,867.08,0.7173509]
[1757232600769,2.56126054,869.47,867.09,0.7173509]
[1757232600969,2.56126054,869.5,867.1,0.7173509]
[1757232601169,2.56126054,869.5,867.11,0.7173509]
[1757232601467,2.56126054,869.5,866.86,0.7616309]
[1757232601468,2.56126054,869.5,867.12,0.7173509]
[1757232601665,2.56126054,869.5,867.13,0.7173509]
[1757232601966,2.56126054,869.56,867.14,0.7173509]
[1757232602169,2.56126054,869.56,867.15,0.7173509]
[1757232602370,2.56126054,869.58,867.16,0.7173509]
[1757232602665,2.56126054,869.58,867.01,0.7616309]
[1757232602666,2.56126054,869.58,867.17,0.7173509]
[1757232602870,2.56126054,869.54,867.18,0.7173509]
[1757232603069,2.56126054,869.54,867.19,0.7173509]
[1757232603272,2.56126054,869.54,867.2,0.7173509]
[1757232603470,2.56126054,869.55,867.21,0.7173509]
[1757232603673,2.56126054,869.83,867.22,0.7173509]
[1757232603970,2.56126054,869.83,867.23,0.7173509]
[1757232604170,2.56126054,869.83,867.24,0.7173509]
[1757232604374,2.56126054,869.83,867.25,0.7173509]
[1757232604673,2.56126054,869.79,867.26,0.7173509]
[1757232604869,2.56126054,869.79,867.27,0.7173509]
[1757232605173,2.56126054,869.79,867.28,0.7173509]
[1757232605470,2.56126054,869.77,867.29,0.7173509]
[1757232605773,2.56126054,869.77,867.3,0.7173509]
[1757232605970,2.56126054,869.77,867.31,0.7173509]
[1757232606173,2.56126054,869.77,867.32,0.7173509]
[1757232606373,2.56126054,869.69,867.33,0.7173509]
[1757232606575,2.56126054,869.69,867.34,0.7173509]
[1757232606870,2.56126054,869.69,867.35,0.7173509]
[1757232607074,2.56126054,869.69,867.36,0.7173509]
[1757232607274,2.56126054,869.68,867.37,0.7173509]
[1757232607474,2.56126054,869.68,867.38,0.7173509]
[1757232607677,2.56126054,869.68,867.39,0.7173509]
[1757232607876,2.56126054,869.68,867.4,0.7173509]
[1757232608076,2.56126054,869.68,867.09,0.7616309]
[1757232608077,2.56126054,869.68,867.41,0.7173509]
[1757232608274,2.56126054,869.68,867.42,0.7173509]
[1757232608478,2.56126054,869.68,867.43,0.7173509]
[1757232608679,2.56126054,869.68,867.44,0.7173509]
[1757232608975,2.56126054,869.68,867.45,0.7173509]
[1757232609174,2.56126054,869.68,867.46,0.7173509]
[1757232609380,2.56126054,869.68,867.47,0.7173509]
[1757232609582,2.56126054,869.68,867.11,0.7616309]
[1757232609775,2.56126054,869.68,867.12,0.71465265]
[1757232610081,2.56126054,869.79,867.13,0.71465265]
[1757232610377,2.56126054,869.79,867.14,0.71465265]
[1757232610580,2.56126054,869.79,867.19,0.7616309]
[1757232610876,2.56126054,869.73,867.19,0.7616309]
[1757232611278,2.56126054,869.73,867.21,0.7616309]
[1757232611480,2.56126054,869.72,867.22,0.71465265]
[1757232611681,2.56126054,869.72,867.23,0.71465265]
[1757232611875,2.56126054,869.73,867.24,0.71465265]
[1757232612080,2.56126054,869.73,867.25,0.71465265]
[1757232612282,2.56126054,869.73,867.26,0.71465265]
[1757232612577,2.56126054,869.54,867.27,0.71465265]
[1757232612781,2.56126054,869.54,867.28,0.71465265]
[1757232613083,2.56126054,869.53,867.29,0.71465265]
[1757232613281,2.56126054,869.53,867.3,0.71465265]
[1757232613482,2.56126054,869.53,867.31,0.71465265]
[1757232613678,2.56126054,869.53,867.03,1.03574146]
[1757232613679,2.56126054,870.36,867.93,0.7616309]
[1757232613881,3.62131877,870.75,867.98,0.7616309]
[1757232614181,3.62131877,870.75,867.99,0.71465265]
[1757232614381,3.62131877,870.75,868.0,0.71465265]
[1757232614583,3.62131877,870.75,868.01,0.71465265]
[1757232614784,2.56126054,871.09,868.02,0.71465265]
[1757232614984,2.56126054,871.09,868.03,0.71465265]
[1757232615182,2.56126054,871.09,868.04,0.71465265]
[1757232615381,2.56126054,871.15,868.05,0.71465265]
[1757232615586,2.56126054,871.15,868.06,0.71465265]
[1757232615886,2.56126054,870.5,868.07,0.71465265]
[1757232616185,2.56126054,870.5,868.08,0.71465265]
[1757232616485,2.56126054,870.5,868.09,0.71465265]
[1757232616785,2.56126054,870.5,868.1,0.71465265]
[1757232616984,2.56126054,870.5,868.11,0.71465265]
[1757232617183,2.56126054,870.5,868.12,0.71465265]
[1757232617383,2.56126054,870.54,868.13,0.71465265]
[1757232617584,2.56126054,870.54,868.14,0.71465265]
[1757232617786,2.56126054,870.54,868.15,0.71465265]
[1757232617986,2.56126054,870.54,868.16,0.71465265]
[1757232618184,2.56126054,870.54,868.17,0.71465265]
[1757232618486,2.56126054,870.59,868.18,0.71465265]
[1757232618682,2.56126054,870.59,868.19,0.71465265]
[1757232618886,2.56126054,870.6,868.2,0.71465265]
[1757232619086,2.56126054,870.6,868.21,0.71465265]
[1757232619282,2.56126054,870.6,868.22,0.71109009]
[1757232619483,2.56126054,870.6,868.23,0.71109009]
[1757232619683,2.56126054,870.6,868.24,0.71109009]
[1757232619890,2.56126054,870.6,868.25,0.71109009]
[1757232620088,2.56126054,870.6,868.26,0.71109009]
[1757232620391,2.56126054,870.6,868.27,0.71109009]
[1757232620590,2.56126054,870.79,868.28,0.71109009]
[1757232620793,2.56126054,870.79,868.29,0.71109009]
[1757232620990,2.56126054,870.94,868.3,0.71109009]
[1757232621189,2.56126054,870.94,868.31,0.71109009]
[1757232621394,2.56126054,870.94,868.32,0.71109009]
[1757232621694,2.56126054,871.17,868.33,0.71109009]
[1757232621895,2.56126054,871.17,868.34,0.71109009]
[1757232622192,2.56126054,871.17,868.35,0.71109009]
[1757232622393,2.56126054,871.17,868.36,0.71109009]
[1757232622594,2.56126054,871.21,868.37,0.71109009]
[1757232622794,2.56126054,871.21,868.38,0.71109009]
[1757232622995,2.56126054,871.21,867.93,0.75840862]
[1757232623196,2.56126054,871.2,867.94,0.71034576]
[1757232623396,2.56126054,871.2,867.94,1.46875438]
[1757232623593,2.56126054,871.24,867.95,0.71034576]
[1757232623893,2.56126054,871.24,867.96,0.71034576]
[1757232624096,2.56126054,871.24,867.97,0.71034576]
[1757232624291,2.56126054,871.24,867.98,0.71034576]
[1757232624491,2.56126054,871.24,867.99,0.71034576]
[1757232624697,2.56126054,871.28,868.0,0.71034576]
[1757232624893,2.56126054,871.28,868.01,0.71034576]
[1757232625092,2.56126054,871.28,868.02,0.71034576]
[1757232625294,2.56126054,871.28,868.03,0.71034576]
[1757232625597,2.56126054,871.28,868.04,0.71034576]
[1757232625893,2.56126054,871.29,868.05,0.71034576]
[1757232626097,2.56126054,871.29,868.06,0.71034576]
[1757232626297,2.56126054,871.3,868.07,0.71034576]
[1757232626495,2.56126054,871.3,868.08,0.71034576]
[1757232626696,2.56126054,871.33,868.09,0.71034576]
[1757232626899,2.56126054,871.33,868.1,0.71034576]
[1757232627099,2.56126054,871.33,868.11,0.71034576]
[1757232627395,2.56126054,871.34,868.12,0.71034576]
[1757232627598,2.56126054,871.34,868.13,0.71034576]
[1757232627797,2.56126054,871.55,868.14,0.71034576]
[1757232627998,2.56126054,871.55,868.15,0.71034576]
[1757232628195,2.56126054,871.55,868.16,0.71034576]
[1757232628499,2.56126054,871.57,868.17,0.71034576]
[1757232628695,2.56126054,871.57,868.18,0.71034576]
[1757232628900,2.56126054,871.31,868.19,0.71034576]
[1757232629099,2.56126054,871.31,868.2,0.71034576]
[1757232629296,2.56126054,871.31,868.21,0.71034576]
[1757232629600,2.56126054,871.35,868.22,0.71034576]
[1757232629795,2.56126054,871.35,868.23,0.71034576]
[1757232630099,2.56126054,871.58,868.24,0.71034576]
[1757232630296,2.56126054,871.58,868.25,0.71034576]
[1757232630500,2.56126054,871.56,868.26,0.71034576]
[1757232630800,2.56126054,871.56,868.27,0.71034576]
[1757232631001,2.56126054,871.56,868.28,0.71034576]
[1757232631301,2.56126054,871.56,868.29,0.71034576]
[1757232631501,2.56126054,871.58,868.3,0.71034576]
[1757232631701,2.56126054,871.58,868.31,0.71034576]
[1757232631897,2.56126054,871.58,868.32,0.71034576]
[1757232632101,2.56126054,871.58,868.33,0.71034576]
[1757232632400,2.56126054,871.58,867.88,0.75840862]
[1757232632604,2.56126054,871.41,867.89,0.70873442]
[1757232632801,2.56126054,871.41,867.9,0.70873442]
[1757232632997,2.56126054,871.41,867.91,0.70873442]
[1757232633201,2.56126054,871.41,867.92,0.70873442]
[1757232633400,2.56126054,871.41,867.93,0.70873442]
[1757232633605,2.56126054,871.42,867.94,0.70873442]
[1757232633803,2.56126054,871.42,867.95,0.70873442]
[1757232634001,2.56126054,871.42,867.96,0.70873442]
[1757232634205,2.56126054,871.42,867.97,0.70873442]
[1757232634403,2.56126054,871.42,867.98,0.70873442]
[1757232634602,2.56126054,871.4,867.99,0.70873442]
[1757232634801,2.56126054,871.4,868.0,0.70873442]
[1757232635001,2.56126054,871.4,868.01,0.70873442]
[1757232635201,2.56126054,871.4,868.02,0.70873442]
[1757232635403,2.56126054,871.4,868.03,0.70873442]
[1757232635602,2.56126054,871.41,868.04,0.70873442]
[1757232635906,2.56126054,871.41,868.05,0.70873442]
[1757232636205,2.56126054,871.41,868.06,0.70873442]
[1757232636404,2.56126054,871.41,868.07,0.70873442]
[1757232636603,2.56126054,871.41,868.08,0.70873442]
[1757232636803,2.56126054,871.41,868.09,0.70873442]
[1757232637103,2.56126054,871.41,868.1,0.70873442]
[1757232637305,2.56126054,871.41,867.76,0.75840862]
[1757232637306,2.56126054,871.46,868.11,0.70873442]
[1757232637505,2.56126054,871.46,868.12,0.70873442]
[1757232637806,2.56126054,871.46,868.13,0.70873442]
[1757232638006,2.56126054,871.46,868.14,0.70873442]
[1757232638207,2.56126054,871.43,868.15,0.70873442]
[1757232638407,2.56126054,871.43,868.16,0.70873442]
[1757232638704,2.56126054,871.43,868.17,0.70873442]
[1757232639006,2.56126054,871.43,868.18,0.70873442]
[1757232639203,2.56126054,871.43,868.19,0.70873442]
[1757232639403,2.56126054,871.43,867.74,0.75840862]
[1757232639607,2.56126054,871.43,867.75,0.70126436]
[1757232639804,2.56126054,871.25,867.76,0.70126436]
[1757232640005,2.56126054,871.25,867.77,0.70126436]
[1757232640203,2.56126054,871.26,867.78,0.70126436]
[1757232640407,2.56126054,871.26,867.79,0.70126436]
[1757232640703,2.56126054,871.26,867.8,0.70126436]
[1757232640905,2.56126054,871.26,867.81,0.70126436]
[1757232641105,2.56126054,871.26,867.82,0.70126436]
[1757232641305,2.56126054,871.26,867.83,0.70126436]
[1757232641506,2.56126054,871.26,867.84,0.70126436]
[1757232641704,2.56126054,871.26,867.85,0.70126436]
[1757232641909,2.56126054,871.15,867.86,0.70126436]
[1757232642106,2.56126054,871.15,867.87,0.70126436]
[1757232642306,2.56126054,871.29,867.88,0.70126436]
[1757232642510,2.56126054,871.29,867.89,0.70126436]
[1757232642710,2.56126054,871.29,867.9,0.70126436]
[1757232642906,2.56126054,871.29,867.91,0.70126436]
[1757232643107,2.56126054,871.29,867.92,0.70126436]
[1757232643311,2.56126054,871.29,867.93,0.70126436]
[1757232643511,2.56126054,871.3,867.94,0.70126436]
[1757232643811,2.56126054,871.3,867.95,0.70126436]
[1757232644013,2.56126054,871.29,867.96,0.70126436]
[1757232644213,2.56126054,871.29,867.97,0.70126436]
[1757232644512,2.56126054,871.3,867.98,0.70126436]
[1757232644712,2.56126054,871.3,867.99,0.70126436]
[1757232644913,2.56126054,871.3,868.0,0.70126436]
[1757232645213,2.56126054,871.3,868.01,0.70126436]
[1757232645410,2.56126054,871.3,868.02,0.70126436]
[1757232645613,2.56126054,871.3,868.03,0.70126436]
[1757232645813,2.56126054,871.3,868.04,0.70126436]
[1757232646010,2.56126054,871.3,867.69,0.75840862]
[1757232646011,2.56126054,871.54,868.05,0.70126436]
[1757232646213,2.56126054,871.54,868.06,0.70126436]
[1757232646414,2.56126054,871.54,868.07,0.70126436]
[1757232646615,2.56126054,871.53,868.08,0.70126436]
[1757232646913,2.56126054,871.53,868.09,0.70126436]
[1757232647110,2.56126054,871.52,868.1,0.70126436]
[1757232647312,2.56126054,871.52,868.11,0.70126436]
[1757232647511,2.56126054,871.5,868.12,0.70126436]
[1757232647710,2.56126054,871.5,868.13,0.70126436]
[1757232648014,2.56126054,871.45,868.14,0.70126436]
[1757232648209,2.56126054,871.45,868.15,0.70126436]
[1757232648410,2.56126054,871.45,868.16,0.70126436]
[1757232648614,2.56126054,871.44,867.66,0.75840862]
[1757232648813,2.56126054,871.44,867.67,0.70170162]
[1757232649017,3.62131877,871.17,867.68,0.70170162]
[1757232649217,2.56126054,870.76,867.69,0.70170162]
[1757232649413,2.56126054,870.76,867.7,0.70170162]
[1757232649613,2.56126054,870.78,867.71,0.70170162]
[1757232649816,2.56126054,870.78,867.72,0.70170162]
[1757232650013,2.56126054,870.78,867.73,0.70170162]
[1757232650213,2.56126054,870.78,867.74,0.70170162]
[1757232650414,2.56126054,870.78,867.75,0.70170162]
[1757232650715,2.56126054,870.73,867.76,0.70170162]
[1757232650918,2.56126054,870.73,867.77,0.70170162]
[1757232651218,2.56126054,870.73,867.78,0.70170162]
[1757232651518,2.56126054,870.73,867.79,0.70170162]
[1757232651718,2.56126054,870.54,867.8,0.70170162]
[1757232651919,2.56126054,870.54,867.81,0.70170162]
[1757232652215,5.17691132,871.81,867.4,1.03574146]
[1757232652216,2.56126054,870.52,867.82,0.70170162]
[1757232652418,2.56126054,870.52,867.83,0.70170162]
[1757232652618,2.56126054,870.52,867.84,0.70170162]
[1757232652818,2.56126054,870.51,867.85,0.70170162]
[1757232653019,2.56126054,870.51,867.86,0.70170162]
[1757232653319,2.56126054,870.49,867.87,0.70170162]
[1757232653519,2.56126054,870.49,867.88,0.70170162]
[1757232653715,2.56126054,870.49,867.89,0.70170162]
[1757232653919,2.56126054,870.5,867.9,0.70170162]
[1757232654118,2.56126054,870.5,867.91,0.70170162]
[1757232654419,2.56126054,870.46,867.58,0.75840862]
[1757232654620,2.56126054,870.46,867.59,0.70269493]
[1757232654816,2.56126054,870.47,867.6,0.70269493]
[1757232655017,2.56126054,870.47,867.61,0.70269493]
[1757232655216,2.56126054,870.47,867.62,0.70269493]
[1757232655417,2.56126054,870.44,867.63,0.70269493]
[1757232655616,2.56126054,870.44,867.64,0.70269493]
[1757232655917,2.56126054,870.44,867.65,0.70269493]
[1757232656116,2.56126054,870.44,867.66,0.70269493]
[1757232656320,2.56126054,870.4,867.67,0.70269493]
[1757232656517,2.56126054,870.4,867.68,0.70269493]
[1757232656821,2.56126054,870.4,867.69,0.70269493]
[1757232657021,2.56126054,870.68,867.7,0.70269493]
[1757232657217,2.56126054,870.68,867.06,1.55427412]
[1757232657218,2.56126054,870.68,867.71,0.70269493]
[1757232657417,0.19989086,870.61,867.72,0.70269493]
[1757232657718,0.19989086,870.61,867.73,0.70269493]
[1757232657918,0.19989086,870.61,867.74,0.70269493]
[1757232658221,0.19989086,870.61,867.75,0.70269493]
[1757232658421,0.19989086,870.61,867.5,0.75840862]
[1757232658422,2.56126054,870.57,867.76,0.70269493]
[1757232658623,2.56126054,870.57,867.77,0.70269493]
[1757232658918,2.56126054,870.57,867.78,0.70269493]
[1757232659218,2.56126054,870.52,867.79,0.70269493]
[1757232659519,2.56126054,870.44,867.8,0.70269493]
[1757232659722,2.56126054,870.44,867.81,0.70269493]
[1757232659923,2.56126054,870.44,867.82,0.70269493]
[1757232660223,2.56126054,870.43,867.83,0.70269493]
[1757232660523,2.56126054,870.43,867.84,0.70269493]
[1757232660720,2.56126054,870.43,867.85,0.70269493]
[1757232661021,2.56126054,870.43,867.86,0.70269493]
[1757232661225,2.56126054,870.49,867.87,0.70269493]
[1757232661522,2.56126054,870.43,867.88,0.70269493]
[1757232661724,2.56126054,870.43,867.48,0.75840862]
[1757232662322,2.56126054,870.43,867.42,0.70464251]
[1757232662323,2.56126054,870.43,867.49,0.70464251]
[1757232662622,2.56126054,870.39,867.5,0.70464251]
[1757232662921,2.56126054,870.39,867.51,0.70464251]
[1757232663121,2.56126054,870.39,867.52,0.70464251]
[1757232663321,2.56126054,870.39,867.53,0.70464251]
[1757232663625,2.56126054,870.33,867.54,0.70464251]
[1757232663825,2.56126054,870.33,867.55,0.70464251]
[1757232664019,2.56126054,870.33,867.56,0.70464251]
[1757232664223,2.56126054,870.33,867.57,0.70464251]
[1757232664525,2.56126054,870.33,867.58,0.70464251]
[1757232664724,2.56126054,870.34,867.59,0.70464251]
[1757232664924,2.56126054,870.34,867.6,0.70464251]
[1757232665123,2.56126054,870.34,867.46,0.75840862]
[1757232665124,2.56126054,870.34,867.61,0.70464251]
[1757232665326,2.56126054,870.34,867.62,0.70464251]
[1757232665526,2.56126054,870.34,867.63,0.70464251]
[1757232665725,2.56126054,870.34,867.64,0.70464251]
[1757232666025,2.56126054,870.34,867.65,0.70464251]
[1757232666225,2.56126054,870.34,867.66,0.70464251]
[1757232666529,2.56126054,870.49,867.67,0.70464251]
[1757232666726,2.56126054,870.49,867.68,0.70464251]
[1757232666930,2.56126054,870.48,867.69,0.70464251]
[1757232667128,2.56126054,870.48,867.7,0.70464251]
[1757232667430,2.56126054,870.45,867.71,0.70464251]
[1757232667630,2.56126054,870.45,867.72,0.70464251]
[1757232667830,2.56126054,870.44,867.73,0.70464251]
[1757232668028,2.56126054,870.44,867.74,0.70464251]
[1757232668228,2.56126054,870.44,867.75,0.70464251]
[1757232668425,2.56126054,870.41,867.76,0.70464251]
[1757232668631,2.56126054,870.41,867.77,0.70464251]
[1757232668828,2.56126054,870.37,867.78,0.70464251]
[1757232669133,2.56126054,870.37,867.79,0.70464251]
[1757232669428,2.56126054,870.33,867.8,0.70464251]
[1757232669730,2.56126054,870.33,867.51,0.75840862]
[1757232669731,2.56126054,870.65,867.81,0.70464251]
[1757232669933,2.56126054,870.65,867.82,0.70464251]
[1757232670231,2.56126054,870.65,867.83,0.70464251]
[1757232670429,2.56126054,870.65,867.84,0.70464251]
[1757232670630,2.56126054,870.08,867.85,0.70464251]
[1757232670833,2.56126054,870.08,867.86,0.70464251]
[1757232671031,2.56126054,870.15,867.87,0.70464251]
[1757232671232,2.56126054,870.15,867.88,0.70464251]
[1757232671430,2.56126054,870.15,867.89,0.70464251]
[1757232671630,2.56126054,870.18,867.9,0.70464251]
[1757232671829,2.56126054,870.18,867.91,0.70464251]
[1757232672030,2.56126054,870.18,867.92,0.70464251]
[1757232672230,2.56126054,870.19,867.93,0.70464251]
[1757232672434,2.56126054,870.19,867.94,0.70464251]
[1757232672733,2.56126054,870.2,867.95,0.70464251]
[1757232672933,2.56126054,870.2,867.96,0.70464251]
[1757232673131,2.56126054,870.2,867.97,0.70464251]
[1757232673334,2.56126054,870.2,867.98,0.70464251]
[1757232673539,2.56126054,870.2,867.99,0.70464251]
[1757232673832,2.56126054,870.15,868.0,0.70464251]
[1757232674035,2.56126054,870.15,868.01,0.70464251]
[1757232674335,2.56126054,870.13,868.02,0.70464251]
[1757232674533,2.56126054,870.13,868.03,0.70464251]
[1757232674731,2.56126054,870.13,868.04,0.70464251]
[1757232675034,2.56126054,870.13,868.05,0.70464251]
[1757232675330,2.56126054,870.13,868.06,0.70464251]
[1757232675534,2.56126054,870.13,868.07,0.70464251]
[1757232675734,2.56126054,870.18,868.08,0.70464251]
[1757232675934,2.56126054,870.18,868.09,0.70464251]
[1757232676133,2.56126054,870.18,868.1,0.70464251]
[1757232676334,2.56126054,870.16,868.11,0.70464251]
[1757232676635,2.56126054,870.16,868.12,0.70464251]
[1757232676834,2.56126054,870.16,868.13,0.70464251]
[1757232677035,2.56126054,870.16,868.14,0.70464251]
[1757232677331,2.56126054,870.16,868.15,0.70464251]
[1757232677531,2.56126054,870.16,868.16,0.70464251]
[1757232677731,2.56126054,870.16,868.17,0.70464251]
[1757232677934,2.56126054,870.16,867.8,0.75840862]
[1757232678137,2.56126054,870.16,867.81,1.4653868]
[1757232678335,2.56126054,870.16,867.82,0.70697818]
[1757232678635,2.56126054,870.16,867.83,0.70697818]
[1757232678935,2.56126054,870.16,867.84,0.70697818]
[1757232679133,2.56126054,870.16,867.85,0.70697818]
[1757232679436,2.56126054,870.16,867.86,0.70697818]
[1757232679635,2.56126054,870.16,867.87,0.70697818]
[1757232679834,2.56126054,870.16,867.88,0.70697818]
[1757232680036,2.56126054,870.16,867.89,0.70697818]
[1757232680234,2.56126054,870.16,867.9,0.70697818]
[1757232680433,2.56126054,870.16,867.91,0.70697818]
[1757232680633,2.56126054,870.16,867.92,0.70697818]
[1757232680838,2.56126054,870.16,867.93,0.70697818]
[1757232681042,2.56126054,870.17,867.94,0.70697818]
[1757232681243,2.56126054,870.17,867.95,0.70697818]
[1757232681441,2.56126054,870.63,868.1,0.75840862]
[1757232681641,2.56126054,870.63,867.96,0.70697818]
[1757232681642,2.56126054,870.63,868.13,0.75840862]
[1757232681839,2.56126054,870.6,868.13,0.75840862]
[1757232682041,2.56126054,870.6,868.13,1.4653868]
[1757232682240,2.56126054,870.6,868.15,0.75840862]
[1757232682543,2.56126054,870.71,868.19,0.75840862]
[1757232683039,2.56126054,870.52,868.21,0.75840862]
[1757232683238,2.56126054,870.52,868.21,1.4653868]
[1757232683444,2.56126054,870.84,868.29,0.75840862]
[1757232683640,2.56126054,870.84,868.34,0.75840862]
[1757232684039,2.56126054,870.87,868.35,0.70697818]
[1757232684245,2.56126054,870.87,868.36,0.70697818]
[1757232684442,2.56126054,871.06,868.37,0.70697818]
[1757232684748,2.56126054,871.06,868.38,0.70697818]
[1757232684945,2.56126054,871.06,868.39,0.70697818]
[1757232685242,2.56126054,871.06,868.4,0.70697818]
[1757232685443,2.56126054,870.62,868.41,0.70697818]
[1757232685641,2.56126054,870.62,868.42,0.70697818]
[1757232685842,2.56126054,870.62,868.43,0.70697818]
[1757232686145,2.56126054,870.68,868.44,0.70697818]
[1757232686344,2.56126054,870.68,868.45,0.70697818]
[1757232686542,2.56126054,870.66,868.46,0.70697818]
[1757232686743,2.56126054,870.66,868.47,0.70697818]
[1757232686946,2.56126054,870.66,868.48,0.70697818]
[1757232687148,2.56126054,870.48,868.16,0.75840862]
[1757232687445,2.56126054,870.48,868.18,0.75840862]
[1757232687647,2.56126054,870.34,868.19,0.70478907]
[1757232687844,2.56126054,870.34,868.2,0.70478907]
[1757232688049,2.56126054,870.34,868.21,0.70478907]
[1757232688348,2.56126054,870.33,868.22,0.70478907]
[1757232688545,2.56126054,870.33,868.23,0.70478907]
[1757232688743,2.56126054,870.32,868.24,0.70478907]
[1757232688942,2.56126054,870.32,868.25,0.70478907]
[1757232689146,2.56126054,870.33,868.26,0.70478907]
[1757232689345,2.56126054,870.33,868.27,0.70478907]
[1757232689550,2.56126054,870.33,868.28,0.70478907]
[1757232689749,2.56126054,870.35,868.29,0.70478907]
[1757232689943,2.56126054,870.35,868.3,0.70478907]
[1757232690249,2.56126054,870.35,868.31,0.70478907]
[1757232690446,2.56126054,870.35,868.32,0.70478907]
[1757232690650,2.56126054,870.35,868.33,0.70478907]
[1757232690850,2.56126054,870.48,868.34,0.70478907]
[1757232691048,2.56126054,870.48,868.35,0.70478907]
[1757232691249,2.56126054,870.48,868.36,0.70478907]
[1757232691447,2.56126054,870.48,868.37,0.70478907]
[1757232691652,2.56126054,870.48,868.38,0.70478907]